[Event "*** SCC Grand Prix: Titled Tuesday Blitz"]
[Site "Chess.com"]
[Date "2020.06.02"]
[Round "1"]
[White "GigaQuparadze"]
[Black "TudorAnton"]
[Result "1-0"]
[WhiteElo "2846"]
[BlackElo "2419"]
[TimeControl "180+1"]
[EndTime "10:04:03 PDT"]
[Termination "GigaQuparadze won by resignation"]

1. e4 {[%clk 0:03:00.9]} 1... e5 {[%clk 0:02:56.9]} 2. Nf3 {[%clk 0:03:00.1]}
2... Nc6 {[%clk 0:02:53.8]} 3. Bb5 {[%clk 0:03:00]} 3... a6 {[%clk 0:02:49]} 4.
Ba4 {[%clk 0:02:59.8]} 4... Nf6 {[%clk 0:02:45.9]} 5. O-O {[%clk 0:02:59.1]}
5... b5 {[%clk 0:02:44.9]} 6. Bb3 {[%clk 0:02:58.5]} 6... Bc5 {[%clk 0:02:45.8]}
7. a4 {[%clk 0:02:58]} 7... Rb8 {[%clk 0:02:45.1]} 8. d3 {[%clk 0:02:55]} 8...
d6 {[%clk 0:02:38.7]} 9. Nc3 {[%clk 0:02:53.4]} 9... O-O {[%clk 0:02:35.2]} 10.
axb5 {[%clk 0:02:52.5]} 10... axb5 {[%clk 0:02:33.3]} 11. Bg5 {[%clk 0:02:52.1]}
11... h6 {[%clk 0:02:28.8]} 12. Bh4 {[%clk 0:02:50.4]} 12... Bg4 {[%clk
0:02:23.7]} 13. h3 {[%clk 0:02:49.9]} 13... Bxf3 {[%clk 0:02:21.6]} 14. Qxf3
{[%clk 0:02:48.6]} 14... Nd4 {[%clk 0:02:21.6]} 15. Qd1 {[%clk 0:02:45.9]} 15...
Nxb3 {[%clk 0:02:21.5]} 16. cxb3 {[%clk 0:02:46.8]} 16... c6 {[%clk 0:02:21.3]}
17. Ra6 {[%clk 0:02:43.3]} 17... g5 {[%clk 0:02:16.2]} 18. Bg3 {[%clk 0:02:42]}
18... Ra8 {[%clk 0:02:09.4]} 19. Rxc6 {[%clk 0:02:39.7]} 19... Qe8 {[%clk
0:01:44.8]} 20. Rc7 {[%clk 0:02:36.3]} 20... Bb6 {[%clk 0:01:40.6]} 21. Rb7
{[%clk 0:02:33.3]} 21... Qc6 {[%clk 0:01:40.2]} 22. Qf3 {[%clk 0:02:31.4]} 22...
Kg7 {[%clk 0:01:39]} 23. Rxb6 {[%clk 0:02:30.5]} 23... Qxb6 {[%clk 0:01:39.5]}
24. Qxf6+ {[%clk 0:02:30.4]} 24... Kxf6 {[%clk 0:01:39.4]} 25. Nd5+ {[%clk
0:02:30.7]} 25... Ke6 {[%clk 0:01:35.8]} 26. Nxb6 {[%clk 0:02:31.6]} 26... Ra2
{[%clk 0:01:34.7]} 27. Rb1 {[%clk 0:02:30.8]} 27... Rb8 {[%clk 0:01:31.4]} 28.
Nd5 {[%clk 0:02:30]} 28... Rc8 {[%clk 0:01:32]} 29. Nc3 {[%clk 0:02:29.9]} 29...
Ra7 {[%clk 0:01:22.2]} 30. b4 {[%clk 0:02:27.3]} 30... f5 {[%clk 0:01:17.3]} 31.
exf5+ {[%clk 0:02:26.5]} 31... Kxf5 {[%clk 0:01:17.4]} 32. Nxb5 {[%clk 0:02:27]}
32... Ra6 {[%clk 0:01:18]} 33. Nc3 {[%clk 0:02:26.3]} 33... Ke6 {[%clk
0:01:16.6]} 34. b5 {[%clk 0:02:26]} 34... Ra5 {[%clk 0:01:15.8]} 35. Re1 {[%clk
0:02:24.4]} 1-0

[Event "*** SCC Grand Prix: Titled Tuesday Blitz"]
[Site "Chess.com"]
[Date "2020.06.02"]
[Round "1"]
[White "FlightsOfFancy"]
[Black "ural58"]
[Result "0-1"]
[WhiteElo "1821"]
[BlackElo "2463"]
[TimeControl "180+1"]
[EndTime "10:04:04 PDT"]
[Termination "ural58 won on time"]

1. e4 {[%clk 0:03:00.4]} 1... d5 {[%clk 0:02:59.1]} 2. exd5 {[%clk 0:03:00]}
2... Qxd5 {[%clk 0:02:59.8]} 3. Nc3 {[%clk 0:02:59.9]} 3... Qa5 {[%clk
0:03:00.1]} 4. d4 {[%clk 0:02:59.2]} 4... Nf6 {[%clk 0:03:00.5]} 5. Nf3 {[%clk
0:02:56.7]} 5... Nc6 {[%clk 0:03:00.1]} 6. d5 {[%clk 0:02:01.8]} 6... Nb4 {[%clk
0:02:59.1]} 7. Bb5+ {[%clk 0:02:00.3]} 7... Bd7 {[%clk 0:02:58.9]} 8. Bxd7+
{[%clk 0:01:54.4]} 8... Nxd7 {[%clk 0:02:59.8]} 9. a3 {[%clk 0:00:53.1]} 9...
Nf6 {[%clk 0:02:56.7]} 10. axb4 {[%clk 0:00:53]} 10... Qxa1 {[%clk 0:02:56.6]}
11. O-O {[%clk 0:00:42]} 11... Qa6 {[%clk 0:02:56]} 12. Ne5 {[%clk 0:00:37.4]}
12... Rd8 {[%clk 0:02:48.8]} 13. Bg5 {[%clk 0:00:17.3]} 13... e6 {[%clk
0:02:46.4]} 14. b5 {[%clk 0:00:15.5]} 14... Qd6 {[%clk 0:02:43.6]} 15. Nc4
{[%clk 0:00:13.5]} 15... Qc5 {[%clk 0:02:43.2]} 16. Qe2 {[%clk 0:00:08.3]} 16...
Be7 {[%clk 0:02:43.2]} 17. dxe6 {[%clk 0:00:05.2]} 17... Qxg5 {[%clk 0:02:41.2]}
0-1

[Event "*** SCC Grand Prix: Titled Tuesday Blitz"]
[Site "Chess.com"]
[Date "2020.06.02"]
[Round "1"]
[White "JiaHaoxiang"]
[Black "HanSchut"]
[Result "1-0"]
[WhiteElo "2554"]
[BlackElo "2203"]
[TimeControl "180+1"]
[EndTime "10:04:05 PDT"]
[Termination "JiaHaoxiang won by resignation"]

1. Nf3 {[%clk 0:02:59.5]} 1... c5 {[%clk 0:02:59.8]} 2. g3 {[%clk 0:02:58.2]}
2... Nc6 {[%clk 0:03:00.1]} 3. Bg2 {[%clk 0:02:58.7]} 3... Nf6 {[%clk
0:03:00.1]} 4. c4 {[%clk 0:02:58.6]} 4... g6 {[%clk 0:02:58.5]} 5. d4 {[%clk
0:02:58.8]} 5... cxd4 {[%clk 0:02:57.8]} 6. Nxd4 {[%clk 0:02:59.1]} 6... Bg7
{[%clk 0:02:57.4]} 7. Nc3 {[%clk 0:02:58.7]} 7... O-O {[%clk 0:02:55.9]} 8. O-O
{[%clk 0:02:58.8]} 8... Nxd4 {[%clk 0:02:56.3]} 9. Qxd4 {[%clk 0:02:58.3]} 9...
d6 {[%clk 0:02:56.8]} 10. Qd3 {[%clk 0:02:58.7]} 10... Be6 {[%clk 0:02:34.4]}
11. Bxb7 {[%clk 0:02:48]} 11... Rb8 {[%clk 0:02:34.4]} 12. Bf3 {[%clk
0:02:47.1]} 12... Qc8 {[%clk 0:02:25.7]} 13. b3 {[%clk 0:02:40.1]} 13... Nd7
{[%clk 0:02:05.5]} 14. Qd2 {[%clk 0:02:19]} 14... Ne5 {[%clk 0:01:53]} 15. Bg2
{[%clk 0:02:17.3]} 15... Bh3 {[%clk 0:01:53]} 16. Rb1 {[%clk 0:02:11.8]} 16...
Bxg2 {[%clk 0:01:48.4]} 17. Kxg2 {[%clk 0:02:11.2]} 17... Qc6+ {[%clk
0:01:02.3]} 18. f3 {[%clk 0:02:10.4]} 18... Nxc4 {[%clk 0:00:58.8]} 19. bxc4
{[%clk 0:02:10.4]} 19... Bxc3 {[%clk 0:00:57.5]} 20. Qxc3 {[%clk 0:02:10.6]}
20... Rxb1 {[%clk 0:00:58.1]} 21. Bh6 {[%clk 0:02:10.7]} 1-0

[Event "*** SCC Grand Prix: Titled Tuesday Blitz"]
[Site "Chess.com"]
[Date "2020.06.02"]
[Round "1"]
[White "Gromes7"]
[Black "Kildepiotr"]
[Result "0-1"]
[WhiteElo "2019"]
[BlackElo "2478"]
[TimeControl "180+1"]
[EndTime "10:04:06 PDT"]
[Termination "Kildepiotr won by resignation"]

1. d4 {[%clk 0:02:58.6]} 1... c5 {[%clk 0:02:58]} 2. Nf3 {[%clk 0:02:57.4]} 2...
cxd4 {[%clk 0:02:57.4]} 3. g3 {[%clk 0:02:45.1]} 3... d5 {[%clk 0:02:53.3]} 4.
Bg2 {[%clk 0:02:46]} 4... Nc6 {[%clk 0:02:53.2]} 5. O-O {[%clk 0:02:46.9]} 5...
e5 {[%clk 0:02:51.3]} 6. Nxd4 {[%clk 0:02:47.8]} 6... exd4 {[%clk 0:02:51]} 7.
c3 {[%clk 0:02:42.3]} 7... Nf6 {[%clk 0:02:47.2]} 8. cxd4 {[%clk 0:02:35.7]}
8... Be7 {[%clk 0:02:45.8]} 9. Nc3 {[%clk 0:02:34.6]} 9... O-O {[%clk
0:02:45.5]} 10. Bg5 {[%clk 0:02:30.6]} 10... Be6 {[%clk 0:02:44.7]} 11. e4
{[%clk 0:02:27.9]} 11... Nxe4 {[%clk 0:02:40.1]} 12. Bxe7 {[%clk 0:02:27.2]}
12... Nxc3 {[%clk 0:02:34.1]} 13. Bxd8 {[%clk 0:02:19]} 13... Nxd1 {[%clk
0:02:33.9]} 14. Bg5 {[%clk 0:02:15.4]} 14... Nxb2 {[%clk 0:02:32.3]} 15. Rab1
{[%clk 0:02:15.3]} 15... Nc4 {[%clk 0:02:31.6]} 16. Rxb7 {[%clk 0:02:13.8]}
16... Rab8 {[%clk 0:02:29.8]} 17. Rc7 {[%clk 0:02:11.6]} 17... Nxd4 {[%clk
0:02:27.9]} 18. h3 {[%clk 0:02:04.6]} 18... h6 {[%clk 0:02:24.5]} 19. Be7 {[%clk
0:02:00.3]} 19... Rfe8 {[%clk 0:02:21.2]} 20. Bc5 {[%clk 0:01:59]} 20... Nb5
{[%clk 0:02:20.3]} 21. Rc6 {[%clk 0:01:52.5]} 21... Rec8 {[%clk 0:02:15.9]} 22.
Rxc8+ {[%clk 0:01:47.1]} 22... Rxc8 {[%clk 0:02:16.8]} 23. Bb4 {[%clk
0:01:44.8]} 23... a5 {[%clk 0:02:16.4]} 24. Be7 {[%clk 0:01:40.3]} 24... d4
{[%clk 0:02:14]} 25. Rb1 {[%clk 0:01:23.8]} 25... Nc3 {[%clk 0:02:10.9]} 26. Rb7
{[%clk 0:01:22.2]} 26... d3 {[%clk 0:02:08.2]} 0-1

[Event "*** SCC Grand Prix: Titled Tuesday Blitz"]
[Site "Chess.com"]
[Date "2020.06.02"]
[Round "1"]
[White "serhanberat_ozdemir"]
[Black "gumimis"]
[Result "1-0"]
[WhiteElo "2519"]
[BlackElo "2141"]
[TimeControl "180+1"]
[EndTime "10:04:07 PDT"]
[Termination "serhanberat_ozdemir won by checkmate"]

1. e4 {[%clk 0:03:00.9]} 1... c6 {[%clk 0:02:59.2]} 2. d4 {[%clk 0:03:00.6]}
2... d5 {[%clk 0:02:59]} 3. exd5 {[%clk 0:03:01.5]} 3... cxd5 {[%clk 0:02:59.3]}
4. c4 {[%clk 0:03:02.1]} 4... Nf6 {[%clk 0:02:55.6]} 5. Nc3 {[%clk 0:03:01.9]}
5... Nc6 {[%clk 0:02:54.9]} 6. Bg5 {[%clk 0:03:01.1]} 6... dxc4 {[%clk
0:02:38.7]} 7. Bxc4 {[%clk 0:03:02]} 7... Qxd4 {[%clk 0:02:29.4]} 8. Qxd4 {[%clk
0:03:00.9]} 8... Nxd4 {[%clk 0:02:29.2]} 9. O-O-O {[%clk 0:03:01.3]} 9... e5
{[%clk 0:02:13.5]} 10. f4 {[%clk 0:03:01.2]} 10... Nc6 {[%clk 0:01:01.9]} 11.
Nb5 {[%clk 0:03:00.3]} 11... Rb8 {[%clk 0:00:48.1]} 12. Nc7+ {[%clk 0:02:47.9]}
12... Ke7 {[%clk 0:00:48.1]} 13. Nd5+ {[%clk 0:02:47.7]} 13... Ke8 {[%clk
0:00:46.3]} 14. Nxf6+ {[%clk 0:02:47.9]} 14... gxf6 {[%clk 0:00:44.8]} 15. Bxf6
{[%clk 0:02:48.8]} 15... Rg8 {[%clk 0:00:44.4]} 16. Nf3 {[%clk 0:02:49.3]} 16...
Rxg2 {[%clk 0:00:29.5]} 17. Rhe1 {[%clk 0:02:49.4]} 17... Bg4 {[%clk 0:00:22.4]}
18. Nxe5 {[%clk 0:02:45.9]} 18... Bxd1 {[%clk 0:00:04.4]} 19. Bxf7# {[%clk
0:02:45]} 1-0

[Event "*** SCC Grand Prix: Titled Tuesday Blitz"]
[Site "Chess.com"]
[Date "2020.06.02"]
[Round "1"]
[White "Quaternitychess"]
[Black "imdvb6307"]
[Result "1-0"]
[WhiteElo "2815"]
[BlackElo "2404"]
[TimeControl "180+1"]
[EndTime "10:04:13 PDT"]
[Termination "Quaternitychess won by resignation"]

1. e4 {[%clk 0:02:57.2]} 1... e5 {[%clk 0:02:54.5]} 2. Nf3 {[%clk 0:02:56.5]}
2... Nf6 {[%clk 0:02:53.8]} 3. Nc3 {[%clk 0:02:54.6]} 3... Nc6 {[%clk
0:02:53.1]} 4. h3 {[%clk 0:02:55.2]} 4... Bc5 {[%clk 0:02:37.4]} 5. Nxe5 {[%clk
0:02:53.8]} 5... Nxe5 {[%clk 0:02:36.8]} 6. d4 {[%clk 0:02:53.4]} 6... d6 {[%clk
0:01:54.1]} 7. dxc5 {[%clk 0:02:50.4]} 7... dxc5 {[%clk 0:01:48]} 8. Qxd8+
{[%clk 0:02:48.7]} 8... Kxd8 {[%clk 0:01:48.1]} 9. Bg5 {[%clk 0:02:46]} 9... c6
{[%clk 0:01:24]} 10. O-O-O+ {[%clk 0:02:43.8]} 10... Kc7 {[%clk 0:01:19.2]} 11.
f4 {[%clk 0:02:41.3]} 11... Ng6 {[%clk 0:01:15.5]} 12. f5 {[%clk 0:02:30]} 12...
Ne5 {[%clk 0:01:14]} 13. Bf4 {[%clk 0:02:30.3]} 13... Re8 {[%clk 0:01:13.4]} 14.
Bc4 {[%clk 0:02:30.8]} 14... b5 {[%clk 0:01:01.8]} 15. Bxf7 {[%clk 0:02:30]}
15... Re7 {[%clk 0:00:59.6]} 16. Be6 {[%clk 0:02:26.4]} 16... Nd7 {[%clk
0:00:41.7]} 17. Rxd7+ {[%clk 0:02:25.4]} 17... Bxd7 {[%clk 0:00:38.5]} 18. Bxe5+
{[%clk 0:02:25.6]} 18... Kb6 {[%clk 0:00:36.4]} 19. Bd6 {[%clk 0:02:23.7]} 19...
Rxe6 {[%clk 0:00:34.1]} 20. fxe6 {[%clk 0:02:23.2]} 20... Bxe6 {[%clk
0:00:33.7]} 21. Rf1 {[%clk 0:02:22.3]} 21... Rd8 {[%clk 0:00:32.2]} 22. e5
{[%clk 0:02:22.6]} 1-0

[Event "*** SCC Grand Prix: Titled Tuesday Blitz"]
[Site "Chess.com"]
[Date "2020.06.02"]
[Round "1"]
[White "EfrenRamos1"]
[Black "mbachez"]
[Result "0-1"]
[WhiteElo "2169"]
[BlackElo "2531"]
[TimeControl "180+1"]
[EndTime "10:04:15 PDT"]
[Termination "mbachez won by resignation"]

1. d4 {[%clk 0:02:59.3]} 1... Nf6 {[%clk 0:02:58.9]} 2. c4 {[%clk 0:02:56.2]}
2... Nc6 {[%clk 0:02:58.6]} 3. Nc3 {[%clk 0:02:53.9]} 3... e5 {[%clk 0:02:58.3]}
4. d5 {[%clk 0:02:52]} 4... Ne7 {[%clk 0:02:58.4]} 5. e4 {[%clk 0:02:48.6]} 5...
Ng6 {[%clk 0:02:58.5]} 6. Be3 {[%clk 0:02:47.5]} 6... Bb4 {[%clk 0:02:57.9]} 7.
f3 {[%clk 0:02:45]} 7... Bxc3+ {[%clk 0:02:57.8]} 8. bxc3 {[%clk 0:02:43.9]}
8... O-O {[%clk 0:02:57.9]} 9. c5 {[%clk 0:02:39.6]} 9... d6 {[%clk 0:02:58]}
10. c4 {[%clk 0:02:34.5]} 10... Nd7 {[%clk 0:02:53.9]} 11. Bd3 {[%clk
0:02:31.6]} 11... Nxc5 {[%clk 0:02:52.7]} 12. Bxc5 {[%clk 0:02:28]} 12... dxc5
{[%clk 0:02:53.6]} 13. Ne2 {[%clk 0:02:26.2]} 13... Qg5 {[%clk 0:02:45.2]} 14.
O-O {[%clk 0:02:23.6]} 14... b6 {[%clk 0:02:44.4]} 15. Qc1 {[%clk 0:02:21.2]}
15... h6 {[%clk 0:02:42.7]} 16. Qxg5 {[%clk 0:02:20]} 16... hxg5 {[%clk
0:02:43.6]} 17. g3 {[%clk 0:02:19.5]} 17... a5 {[%clk 0:02:41.8]} 18. Nc3 {[%clk
0:02:18.4]} 18... Ba6 {[%clk 0:02:40.2]} 19. a4 {[%clk 0:02:16.9]} 19... Rfd8
{[%clk 0:02:39.9]} 20. Rfd1 {[%clk 0:02:15.1]} 20... f6 {[%clk 0:02:40.1]} 21.
Bf1 {[%clk 0:02:14.1]} 21... Kf7 {[%clk 0:02:40.3]} 22. Nb5 {[%clk 0:02:12.6]}
22... Bxb5 {[%clk 0:02:39.5]} 23. cxb5 {[%clk 0:02:11.9]} 23... Ne7 {[%clk
0:02:39.1]} 24. Bh3 {[%clk 0:02:11]} 24... Nc8 {[%clk 0:02:38.9]} 25. Be6+
{[%clk 0:02:10.2]} 25... Ke7 {[%clk 0:02:38.7]} 26. Bxc8 {[%clk 0:02:09.7]}
26... Raxc8 {[%clk 0:02:38.5]} 27. Kg2 {[%clk 0:02:08.8]} 27... Rh8 {[%clk
0:02:38.5]} 28. h3 {[%clk 0:02:08.6]} 28... Rh6 {[%clk 0:02:37.9]} 29. g4 {[%clk
0:02:08.6]} 29... Rch8 {[%clk 0:02:37.4]} 30. Rh1 {[%clk 0:02:07.9]} 30... Kd6
{[%clk 0:02:37.6]} 31. Rac1 {[%clk 0:02:06.8]} 31... g6 {[%clk 0:02:37.9]} 32.
Rc3 {[%clk 0:01:59.8]} 32... R6h7 {[%clk 0:02:37.8]} 33. Rc4 {[%clk 0:01:58.8]}
33... Rf8 {[%clk 0:02:37.8]} 34. Rc2 {[%clk 0:01:58.3]} 34... f5 {[%clk
0:02:37.9]} 35. Re1 {[%clk 0:01:55.9]} 35... Rfh8 {[%clk 0:02:34.9]} 36. Rh1
{[%clk 0:01:55.4]} 36... fxe4 {[%clk 0:02:34.9]} 37. fxe4 {[%clk 0:01:55.2]}
37... Rf7 {[%clk 0:02:35]} 38. Rf2 {[%clk 0:01:53.8]} 38... Rf4 {[%clk
0:02:34.8]} 39. Rxf4 {[%clk 0:01:53]} 39... exf4 {[%clk 0:02:34.7]} 40. Kf3
{[%clk 0:01:42.6]} 40... c4 {[%clk 0:02:34.9]} 41. Kg2 {[%clk 0:01:37.9]} 41...
Kc5 {[%clk 0:02:32.3]} 42. Kf3 {[%clk 0:01:37.7]} 42... Rh7 {[%clk 0:02:32]} 43.
h4 {[%clk 0:01:37.2]} 43... Rxh4 {[%clk 0:02:26.8]} 44. Rxh4 {[%clk 0:01:36.9]}
44... gxh4 {[%clk 0:02:27]} 45. Kxf4 {[%clk 0:01:36.3]} 45... c3 {[%clk
0:02:27.3]} 0-1

[Event "*** SCC Grand Prix: Titled Tuesday Blitz"]
[Site "Chess.com"]
[Date "2020.06.02"]
[Round "1"]
[White "rynos0411"]
[Black "AungTZ"]
[Result "0-1"]
[WhiteElo "2450"]
[BlackElo "1929"]
[TimeControl "180+1"]
[EndTime "10:04:20 PDT"]
[Termination "AungTZ won by resignation"]

1. d4 {[%clk 0:02:59.8]} 1... Nf6 {[%clk 0:02:58.8]} 2. c4 {[%clk 0:02:57.4]}
2... e6 {[%clk 0:02:58.4]} 3. Nf3 {[%clk 0:02:56.6]} 3... b6 {[%clk 0:02:57.2]}
4. g3 {[%clk 0:02:54.2]} 4... Ba6 {[%clk 0:02:55.7]} 5. b3 {[%clk 0:02:53.6]}
5... Bb4+ {[%clk 0:02:54.9]} 6. Nbd2 {[%clk 0:02:50.7]} 6... O-O {[%clk
0:02:49.1]} 7. Bg2 {[%clk 0:02:50.5]} 7... c6 {[%clk 0:02:48.9]} 8. O-O {[%clk
0:02:49.5]} 8... d5 {[%clk 0:02:47.6]} 9. Qc2 {[%clk 0:02:45.7]} 9... h6 {[%clk
0:02:41]} 10. Rd1 {[%clk 0:02:44.8]} 10... Nbd7 {[%clk 0:02:35.1]} 11. a3 {[%clk
0:02:44]} 11... Be7 {[%clk 0:02:33.2]} 12. Bb2 {[%clk 0:02:41.9]} 12... Rc8
{[%clk 0:02:32.8]} 13. Rac1 {[%clk 0:02:41.8]} 13... c5 {[%clk 0:02:28.8]} 14.
dxc5 {[%clk 0:02:36.8]} 14... Nxc5 {[%clk 0:02:26.1]} 15. b4 {[%clk 0:02:35.5]}
15... Nce4 {[%clk 0:02:24.5]} 16. Qb1 {[%clk 0:02:28.2]} 16... Qe8 {[%clk
0:02:02]} 17. Ne5 {[%clk 0:02:15.1]} 17... Nxd2 {[%clk 0:01:46.5]} 18. Rxd2
{[%clk 0:02:15.2]} 18... Bxc4 {[%clk 0:01:28.6]} 19. Nxc4 {[%clk 0:02:09.6]}
19... Rxc4 {[%clk 0:01:27.9]} 20. Rxc4 {[%clk 0:01:57.3]} 20... dxc4 {[%clk
0:01:27.6]} 21. Be5 {[%clk 0:01:58.2]} 21... b5 {[%clk 0:01:21.3]} 22. Qb2
{[%clk 0:01:54.2]} 22... Qc8 {[%clk 0:01:19.7]} 23. Bd4 {[%clk 0:01:51.3]} 23...
a6 {[%clk 0:01:17.1]} 24. Bb6 {[%clk 0:01:42.5]} 24... c3 {[%clk 0:01:09.8]} 0-1

[Event "*** SCC Grand Prix: Titled Tuesday Blitz"]
[Site "Chess.com"]
[Date "2020.06.02"]
[Round "1"]
[White "Ranindu2003"]
[Black "PauloFanha"]
[Result "1-0"]
[WhiteElo "2469"]
[BlackElo "1952"]
[TimeControl "180+1"]
[EndTime "10:04:22 PDT"]
[Termination "Ranindu2003 won by resignation"]

1. e4 {[%clk 0:02:56.4]} 1... d5 {[%clk 0:02:59.5]} 2. exd5 {[%clk 0:02:56]}
2... Qxd5 {[%clk 0:02:59.6]} 3. Nc3 {[%clk 0:02:56.5]} 3... Qd6 {[%clk
0:02:58.6]} 4. d4 {[%clk 0:02:56.1]} 4... Nf6 {[%clk 0:02:58.6]} 5. Nf3 {[%clk
0:02:55.8]} 5... c6 {[%clk 0:02:58.8]} 6. Ne5 {[%clk 0:02:54.2]} 6... Bf5 {[%clk
0:02:56.3]} 7. Bc4 {[%clk 0:02:48.8]} 7... e6 {[%clk 0:02:54]} 8. Bf4 {[%clk
0:02:48.6]} 8... Qd8 {[%clk 0:02:48.5]} 9. a3 {[%clk 0:02:36.3]} 9... Bd6 {[%clk
0:02:42.8]} 10. Qe2 {[%clk 0:02:34.2]} 10... O-O {[%clk 0:02:38.9]} 11. O-O-O
{[%clk 0:02:32.8]} 11... b5 {[%clk 0:02:33.2]} 12. Bb3 {[%clk 0:02:29.4]} 12...
b4 {[%clk 0:02:30.6]} 13. axb4 {[%clk 0:02:29.5]} 13... Bxb4 {[%clk 0:02:28.9]}
14. Na2 {[%clk 0:02:24.4]} 14... Bd6 {[%clk 0:02:19.5]} 15. f3 {[%clk
0:02:16.5]} 15... Nd5 {[%clk 0:02:16.3]} 16. Bd2 {[%clk 0:02:08.8]} 16... a5
{[%clk 0:02:12.4]} 17. g4 {[%clk 0:02:07.1]} 17... Bg6 {[%clk 0:02:09]} 18. h4
{[%clk 0:02:07.2]} 18... f6 {[%clk 0:01:52.2]} 19. Nxg6 {[%clk 0:01:59.1]} 19...
hxg6 {[%clk 0:01:51.8]} 20. Qxe6+ {[%clk 0:01:59.5]} 20... Kh8 {[%clk
0:01:48.6]} 21. g5 {[%clk 0:01:40.1]} 21... Qe7 {[%clk 0:01:37.3]} 22. Bxd5
{[%clk 0:01:34.7]} 22... cxd5 {[%clk 0:01:34.2]} 23. Qxd5 {[%clk 0:01:35.2]}
23... Nd7 {[%clk 0:01:30.1]} 24. h5 {[%clk 0:01:32.7]} 1-0

[Event "*** SCC Grand Prix: Titled Tuesday Blitz"]
[Site "Chess.com"]
[Date "2020.06.02"]
[Round "1"]
[White "Stewie_89"]
[Black "Tomytoteph"]
[Result "1-0"]
[WhiteElo "2634"]
[BlackElo "2297"]
[TimeControl "180+1"]
[EndTime "10:04:23 PDT"]
[Termination "Stewie_89 won by resignation"]

1. e4 {[%clk 0:03:00.3]} 1... c5 {[%clk 0:02:59.1]} 2. Nf3 {[%clk 0:02:58.6]}
2... g6 {[%clk 0:02:59.5]} 3. h4 {[%clk 0:02:53.4]} 3... h5 {[%clk 0:02:58.3]}
4. d4 {[%clk 0:02:49.7]} 4... cxd4 {[%clk 0:02:59.2]} 5. Nxd4 {[%clk 0:02:50.4]}
5... Nf6 {[%clk 0:02:58.4]} 6. Nc3 {[%clk 0:02:50.3]} 6... Nc6 {[%clk 0:02:59]}
7. Nxc6 {[%clk 0:02:50]} 7... bxc6 {[%clk 0:02:56.5]} 8. Be2 {[%clk 0:02:44.2]}
8... Qc7 {[%clk 0:02:53.9]} 9. Bg5 {[%clk 0:02:42.4]} 9... Bg7 {[%clk
0:02:49.2]} 10. Qd2 {[%clk 0:02:41.2]} 10... Rb8 {[%clk 0:02:34.4]} 11. Rb1
{[%clk 0:02:39.4]} 11... d6 {[%clk 0:02:20.4]} 12. O-O {[%clk 0:02:35.4]} 12...
Be6 {[%clk 0:02:11.5]} 13. b3 {[%clk 0:02:32]} 13... Qa5 {[%clk 0:02:04.5]} 14.
b4 {[%clk 0:02:06.5]} 14... Rxb4 {[%clk 0:01:50.5]} 15. Nd5 {[%clk 0:02:03]}
15... c5 {[%clk 0:01:14.6]} 16. Nxb4 {[%clk 0:01:57.4]} 16... cxb4 {[%clk
0:01:15.5]} 17. Qxb4 {[%clk 0:01:54.4]} 1-0

[Event "*** SCC Grand Prix: Titled Tuesday Blitz"]
[Site "Chess.com"]
[Date "2020.06.02"]
[Round "1"]
[White "krasavetc"]
[Black "emperor87"]
[Result "0-1"]
[WhiteElo "2246"]
[BlackElo "2585"]
[TimeControl "180+1"]
[EndTime "10:04:27 PDT"]
[Termination "emperor87 won by resignation"]

1. Nf3 {[%clk 0:02:56.3]} 1... Nf6 {[%clk 0:02:39.3]} 2. Nc3 {[%clk 0:02:55.2]}
2... b6 {[%clk 0:02:40.2]} 3. e4 {[%clk 0:02:55.1]} 3... Bb7 {[%clk 0:02:41.1]}
4. d3 {[%clk 0:02:55.1]} 4... d6 {[%clk 0:02:42]} 5. Bg5 {[%clk 0:02:54.9]} 5...
Nbd7 {[%clk 0:02:42.9]} 6. Be2 {[%clk 0:02:55.1]} 6... e5 {[%clk 0:02:43.3]} 7.
O-O {[%clk 0:02:55.1]} 7... Be7 {[%clk 0:02:43.3]} 8. Bh4 {[%clk 0:02:53.8]}
8... O-O {[%clk 0:02:43]} 9. Nd2 {[%clk 0:02:54]} 9... h6 {[%clk 0:02:42.4]} 10.
Bg3 {[%clk 0:02:48.2]} 10... Re8 {[%clk 0:02:41]} 11. f4 {[%clk 0:02:47.9]}
11... exf4 {[%clk 0:02:40.6]} 12. Bxf4 {[%clk 0:02:47.9]} 12... Ne5 {[%clk
0:02:40.3]} 13. Nf3 {[%clk 0:02:44.8]} 13... Ng6 {[%clk 0:02:40.3]} 14. Bg3
{[%clk 0:02:44.8]} 14... Nd7 {[%clk 0:02:39.9]} 15. Nd4 {[%clk 0:02:44]} 15...
Bf6 {[%clk 0:02:39.7]} 16. Nf5 {[%clk 0:02:43.6]} 16... Nc5 {[%clk 0:02:39.1]}
17. Bh5 {[%clk 0:02:42.6]} 17... Kh7 {[%clk 0:02:38.2]} 18. Qg4 {[%clk
0:02:33.5]} 18... d5 {[%clk 0:02:37.5]} 19. exd5 {[%clk 0:02:30.1]} 19... Bxc3
{[%clk 0:02:34]} 20. bxc3 {[%clk 0:02:28.3]} 20... Qxd5 {[%clk 0:02:33.9]} 21.
Nh4 {[%clk 0:02:22.6]} 21... Nxh4 {[%clk 0:02:12.2]} 22. Bxh4 {[%clk 0:02:19.8]}
22... g6 {[%clk 0:02:10.7]} 23. c4 {[%clk 0:02:10]} 23... Qxh5 {[%clk
0:02:06.7]} 24. Rxf7+ {[%clk 0:02:08.6]} 24... Kg8 {[%clk 0:02:06.8]} 25. Qxh5
{[%clk 0:00:57.2]} 25... gxh5 {[%clk 0:02:05.5]} 26. d4 {[%clk 0:00:56.2]} 26...
Kxf7 {[%clk 0:02:03.5]} 0-1